[Event "Late-Titled-Tuesday-Blitz-August-29-2023"]
[Site "Chess.com"]
[Date "2023.08.29"]
[Round "7"]
[White "chessS1r"]
[Black "Colombiano07"]
[Result "1/2-1/2"]
[WhiteElo "2590"]
[BlackElo "2457"]
[TimeControl "180+1"]
[EndTime "15:15:13 PDT"]
[Termination "Game drawn by repetition"]

1. d4 {[%clk 0:02:59.8]} 1... d5 {[%clk 0:02:59.7]} 2. c4 {[%clk 0:03:00]} 2...
dxc4 {[%clk 0:03:00.6]} 3. e4 {[%clk 0:02:59.7]} 3... Nf6 {[%clk 0:02:59.2]} 4.
e5 {[%clk 0:02:59.8]} 4... Nd5 {[%clk 0:02:59.9]} 5. Bxc4 {[%clk 0:03:00.3]}
5... Nb6 {[%clk 0:03:00.6]} 6. Bd3 {[%clk 0:03:00.2]} 6... Nc6 {[%clk
0:03:01.3]} 7. Ne2 {[%clk 0:03:00.5]} 7... Bg4 {[%clk 0:02:58.4]} 8. f3 {[%clk
0:02:53.3]} 8... Bh5 {[%clk 0:02:58.2]} 9. Nbc3 {[%clk 0:02:49.5]} 9... e6
{[%clk 0:02:57.7]} 10. Be3 {[%clk 0:02:45.9]} 10... Nb4 {[%clk 0:02:53.1]} 11.
Be4 {[%clk 0:02:41.6]} 11... N4d5 {[%clk 0:02:50.7]} 12. Nxd5 {[%clk 0:02:31.8]}
12... Nxd5 {[%clk 0:02:51.6]} 13. Qa4+ {[%clk 0:02:29.8]} 13... c6 {[%clk
0:02:50.8]} 14. Bxd5 {[%clk 0:02:30.3]} 14... Qxd5 {[%clk 0:02:47.9]} 15. Nf4
{[%clk 0:02:30.3]} 15... b5 {[%clk 0:01:38.4]} 16. Qc2 {[%clk 0:02:27.8]} 16...
Bg6 {[%clk 0:01:35.4]} 17. Nxd5 {[%clk 0:02:20.2]} 17... Bxc2 {[%clk 0:01:35.2]}
18. Nc7+ {[%clk 0:02:21.1]} 18... Kd7 {[%clk 0:01:35.2]} 19. Nxa8 {[%clk
0:02:22]} 19... Be7 {[%clk 0:01:27.4]} 20. Kd2 {[%clk 0:02:15.3]} 20... Bg6
{[%clk 0:01:27.1]} 21. a3 {[%clk 0:02:11.4]} 21... Rxa8 {[%clk 0:01:23.8]} 22.
b4 {[%clk 0:02:11.3]} 22... a5 {[%clk 0:01:21.5]} 23. Kc3 {[%clk 0:02:11.7]}
23... h5 {[%clk 0:01:18.2]} 24. h4 {[%clk 0:02:09.6]} 24... Bd8 {[%clk
0:01:14.7]} 25. g4 {[%clk 0:02:08]} 25... hxg4 {[%clk 0:01:11.8]} 26. fxg4
{[%clk 0:02:08.9]} 26... Be4 {[%clk 0:01:09.8]} 27. Rhf1 {[%clk 0:01:58.6]}
27... axb4+ {[%clk 0:01:08.8]} 28. axb4 {[%clk 0:01:55.7]} 28... Rxa1 {[%clk
0:01:07.1]} 29. Rxa1 {[%clk 0:01:54.7]} 29... Bxh4 {[%clk 0:01:07.8]} 30. Ra7+
{[%clk 0:01:45.3]} 30... Ke8 {[%clk 0:01:07.1]} 31. g5 {[%clk 0:01:35.5]} 31...
g6 {[%clk 0:01:04.1]} 32. d5 {[%clk 0:01:30.1]} 32... Bxd5 {[%clk 0:01:02.1]}
33. Kd4 {[%clk 0:01:30.3]} 33... Bg3 {[%clk 0:00:59.6]} 34. Ra1 {[%clk
0:01:17.7]} 34... Bh2 {[%clk 0:00:57.2]} 35. Rf1 {[%clk 0:01:11.9]} 35... Ke7
{[%clk 0:00:53.2]} 36. Bf4 {[%clk 0:01:09.8]} 36... Bg2 {[%clk 0:00:49.6]} 37.
Bxh2 {[%clk 0:00:51.7]} 37... Bxf1 {[%clk 0:00:49.2]} 38. Kc5 {[%clk 0:00:52.6]}
38... Bg2 {[%clk 0:00:48.8]} 39. Bg1 {[%clk 0:00:51.9]} 39... Bd5 {[%clk
0:00:49.7]} 40. Kb6 {[%clk 0:00:50.8]} 40... Bg2 {[%clk 0:00:50.6]} 41. Bc5+
{[%clk 0:00:50.5]} 41... Kd7 {[%clk 0:00:49.8]} 42. Kb7 {[%clk 0:00:49.1]} 42...
Bd5 {[%clk 0:00:50.2]} 43. Kb6 {[%clk 0:00:49.4]} 43... Bc4 {[%clk 0:00:50.5]}
44. Kb7 {[%clk 0:00:49.9]} 44... Bd5 {[%clk 0:00:51.4]} 45. Kb6 {[%clk
0:00:50.5]} 45... Bc4 {[%clk 0:00:52.3]} 46. Kb7 {[%clk 0:00:51.4]} 46... Bd5
{[%clk 0:00:53.2]} 1/2-1/2

[Event "Late-Titled-Tuesday-Blitz-August-29-2023"]
[Site "Chess.com"]
[Date "2023.08.29"]
[Round "7"]
[White "Mariia89"]
[Black "IngOscarArdila"]
[Result "0-1"]
[WhiteElo "1961"]
[BlackElo "2298"]
[TimeControl "180+1"]
[EndTime "15:15:18 PDT"]
[Termination "IngOscarArdila won by resignation"]

1. d4 {[%clk 0:02:40.9]} 1... Nf6 {[%clk 0:02:59.2]} 2. Nf3 {[%clk 0:02:41.4]}
2... e6 {[%clk 0:02:57.6]} 3. Bg5 {[%clk 0:02:42]} 3... Be7 {[%clk 0:02:57.2]}
4. e3 {[%clk 0:02:42.7]} 4... O-O {[%clk 0:02:55.8]} 5. Bd3 {[%clk 0:02:43.2]}
5... d6 {[%clk 0:02:54.6]} 6. Nbd2 {[%clk 0:02:43.1]} 6... Nbd7 {[%clk
0:02:54.8]} 7. c3 {[%clk 0:02:43.7]} 7... c5 {[%clk 0:02:54]} 8. Qe2 {[%clk
0:02:43.6]} 8... h6 {[%clk 0:02:53.4]} 9. Bh4 {[%clk 0:02:43.3]} 9... Qc7 {[%clk
0:02:53.3]} 10. Bg3 {[%clk 0:02:42.6]} 10... e5 {[%clk 0:02:52.6]} 11. Nh4
{[%clk 0:02:09.9]} 11... Re8 {[%clk 0:02:46.2]} 12. Nf5 {[%clk 0:02:06.9]} 12...
Bf8 {[%clk 0:02:46.3]} 13. dxe5 {[%clk 0:01:29.8]} 13... Nxe5 {[%clk 0:02:45.4]}
14. e4 {[%clk 0:01:27.1]} 14... Bxf5 {[%clk 0:02:42.7]} 15. Bxe5 {[%clk
0:01:18.8]} 15... Rxe5 {[%clk 0:02:40.7]} 16. O-O-O {[%clk 0:01:09.7]} 16... Bg6
{[%clk 0:02:36.2]} 17. f4 {[%clk 0:01:08.7]} 17... Ree8 {[%clk 0:02:35.4]} 18.
f5 {[%clk 0:01:09.2]} 18... Bh5 {[%clk 0:02:35]} 19. Nf3 {[%clk 0:01:08]} 19...
d5 {[%clk 0:02:32.9]} 20. e5 {[%clk 0:00:51.5]} 20... Bxf3 {[%clk 0:02:30.6]}
21. Qxf3 {[%clk 0:00:48.9]} 21... Rxe5 {[%clk 0:02:30.5]} 22. g4 {[%clk
0:00:45.2]} 22... Rae8 {[%clk 0:02:29.1]} 23. Qg2 {[%clk 0:00:33.9]} 23... Re3
{[%clk 0:02:22.5]} 24. g5 {[%clk 0:00:31]} 24... hxg5 {[%clk 0:02:22]} 25. Qxg5
{[%clk 0:00:30.1]} 25... Nh7 {[%clk 0:02:20.2]} 26. Qg4 {[%clk 0:00:26]} 26...
Nf6 {[%clk 0:02:18.7]} 27. Qg5 {[%clk 0:00:25.1]} 27... Qe5 {[%clk 0:02:00.2]}
28. Rhg1 {[%clk 0:00:22.2]} 28... Rf3 {[%clk 0:01:51.6]} 29. Kb1 {[%clk
0:00:16.4]} 29... c4 {[%clk 0:01:25.9]} 30. Bc2 {[%clk 0:00:15.9]} 30... Rf2
{[%clk 0:01:25.1]} 31. h4 {[%clk 0:00:15.2]} 31... Qe2 {[%clk 0:01:22.9]} 32.
Rc1 {[%clk 0:00:13.1]} 32... Ne4 {[%clk 0:01:17]} 33. Qh5 {[%clk 0:00:11.1]}
33... Qxh5 {[%clk 0:01:15.7]} 0-1

[Event "Late-Titled-Tuesday-Blitz-August-29-2023"]
[Site "Chess.com"]
[Date "2023.08.29"]
[Round "7"]
[White "dosto07"]
[Black "bescmelasti"]
[Result "1-0"]
[WhiteElo "2512"]
[BlackElo "2603"]
[TimeControl "180+1"]
[EndTime "15:15:19 PDT"]
[Termination "dosto07 won by resignation"]

1. e4 {[%clk 0:03:00.9]} 1... c5 {[%clk 0:02:55.3]} 2. Nf3 {[%clk 0:03:00.9]}
2... e6 {[%clk 0:02:55.4]} 3. c3 {[%clk 0:03:00.2]} 3... d5 {[%clk 0:02:53.9]}
4. exd5 {[%clk 0:03:00.5]} 4... Qxd5 {[%clk 0:02:54.5]} 5. d4 {[%clk 0:03:01.3]}
5... Nf6 {[%clk 0:02:52]} 6. Na3 {[%clk 0:03:01.4]} 6... Nc6 {[%clk 0:02:51.7]}
7. Be3 {[%clk 0:02:59.2]} 7... cxd4 {[%clk 0:02:49.6]} 8. Nb5 {[%clk 0:02:58.8]}
8... Qd7 {[%clk 0:02:50.1]} 9. Nbxd4 {[%clk 0:02:58.3]} 9... Nd5 {[%clk
0:02:47.1]} 10. Bb5 {[%clk 0:02:50.5]} 10... Nxe3 {[%clk 0:02:43.9]} 11. fxe3
{[%clk 0:02:50.2]} 11... Bd6 {[%clk 0:01:47.3]} 12. Qa4 {[%clk 0:02:35]} 12...
O-O {[%clk 0:01:33.4]} 13. Nxc6 {[%clk 0:02:31.5]} 13... a6 {[%clk 0:01:33.4]}
14. Ncd4 {[%clk 0:02:20.7]} 14... axb5 {[%clk 0:01:30.6]} 15. Qxa8 {[%clk
0:02:20.4]} 15... e5 {[%clk 0:01:30.4]} 16. Nb3 {[%clk 0:02:04.2]} 16... Qc7
{[%clk 0:01:03.4]} 17. Qa5 {[%clk 0:01:55.5]} 17... Qc4 {[%clk 0:01:03.1]} 18.
O-O-O {[%clk 0:01:49.9]} 18... Bf5 {[%clk 0:00:45.4]} 19. Rxd6 {[%clk
0:01:07.1]} 19... Qe4 {[%clk 0:00:43.8]} 20. Kd2 {[%clk 0:00:48.5]} 20... Qc2+
{[%clk 0:00:43.6]} 21. Ke1 {[%clk 0:00:48.1]} 21... Qb1+ {[%clk 0:00:40.5]} 22.
Kf2 {[%clk 0:00:45.3]} 22... Qxb2+ {[%clk 0:00:41.4]} 23. Kg3 {[%clk 0:00:43.6]}
23... b6 {[%clk 0:00:35.2]} 24. Qxb6 {[%clk 0:00:41.8]} 24... Qxc3 {[%clk
0:00:34.8]} 25. Rd8 {[%clk 0:00:41.7]} 25... g6 {[%clk 0:00:19.3]} 26. Rxf8+
{[%clk 0:00:38.5]} 26... Kxf8 {[%clk 0:00:20.2]} 27. Qd6+ {[%clk 0:00:38.2]}
27... Kg8 {[%clk 0:00:18.4]} 1-0

[Event "Late-Titled-Tuesday-Blitz-August-29-2023"]
[Site "Chess.com"]
[Date "2023.08.29"]
[Round "7"]
[White "tteshan"]
[Black "ckgchess"]
[Result "0-1"]
[WhiteElo "2570"]
[BlackElo "2877"]
[TimeControl "180+1"]
[EndTime "15:15:22 PDT"]
[Termination "ckgchess won by resignation"]

1. e4 {[%clk 0:03:00.9]} 1... e5 {[%clk 0:02:50.3]} 2. Nf3 {[%clk 0:03:00.7]}
2... Nf6 {[%clk 0:02:50.7]} 3. Nxe5 {[%clk 0:02:59.7]} 3... d5 {[%clk
0:02:50.9]} 4. d4 {[%clk 0:02:47.8]} 4... Nxe4 {[%clk 0:02:41.7]} 5. Bd3 {[%clk
0:02:43.7]} 5... Nd7 {[%clk 0:02:41.6]} 6. Nxd7 {[%clk 0:02:34.1]} 6... Bxd7
{[%clk 0:02:41.5]} 7. O-O {[%clk 0:02:34]} 7... Bd6 {[%clk 0:02:41.5]} 8. Bxe4
{[%clk 0:01:54.2]} 8... dxe4 {[%clk 0:02:41.7]} 9. Qe2 {[%clk 0:01:52.4]} 9...
O-O {[%clk 0:02:38.2]} 10. Qxe4 {[%clk 0:01:48.2]} 10... Re8 {[%clk 0:02:38.3]}
11. Qd3 {[%clk 0:01:42.5]} 11... Qh4 {[%clk 0:02:33.3]} 12. g3 {[%clk
0:01:39.8]} 12... Qh5 {[%clk 0:02:23.4]} 13. Be3 {[%clk 0:01:24.9]} 13... Bg4
{[%clk 0:01:58.4]} 14. Re1 {[%clk 0:01:05.3]} 14... Bf5 {[%clk 0:01:47.7]} 15.
Qb3 {[%clk 0:00:54.7]} 15... Qg6 {[%clk 0:01:45.1]} 16. Nd2 {[%clk 0:00:47.7]}
16... Bxc2 {[%clk 0:01:44.5]} 17. Qxb7 {[%clk 0:00:45.6]} 17... Rab8 {[%clk
0:01:45]} 18. Qc6 {[%clk 0:00:41.3]} 18... h5 {[%clk 0:01:32.8]} 19. Rac1 {[%clk
0:00:36.4]} 19... Bf5 {[%clk 0:01:31.3]} 20. b3 {[%clk 0:00:25.5]} 20... h4
{[%clk 0:01:30.3]} 21. Qf3 {[%clk 0:00:18.6]} 21... Bg4 {[%clk 0:01:22.4]} 22.
Qg2 {[%clk 0:00:17.2]} 22... Bb4 {[%clk 0:01:08.4]} 23. Rc6 {[%clk 0:00:11.5]}
23... Qd3 {[%clk 0:01:04.1]} 24. Qf1 {[%clk 0:00:08.8]} 24... Rxe3 {[%clk
0:00:54.7]} 25. Rxe3 {[%clk 0:00:06.4]} 25... Qxd2 {[%clk 0:00:54.9]} 26. Qc1
{[%clk 0:00:05.2]} 26... Qxc1+ {[%clk 0:00:49.3]} 0-1

[Event "Late-Titled-Tuesday-Blitz-August-29-2023"]
[Site "Chess.com"]
[Date "2023.08.29"]
[Round "7"]
[White "PNEPaul"]
[Black "Veleamater"]
[Result "0-1"]
[WhiteElo "1890"]
[BlackElo "2285"]
[TimeControl "180+1"]
[EndTime "15:15:26 PDT"]
[Termination "Veleamater won by checkmate"]

1. e4 {[%clk 0:02:52.7]} 1... e6 {[%clk 0:02:58.6]} 2. d4 {[%clk 0:02:52.4]}
2... d5 {[%clk 0:02:59]} 3. e5 {[%clk 0:02:52.7]} 3... c5 {[%clk 0:02:58.7]} 4.
Qg4 {[%clk 0:02:51.6]} 4... Nc6 {[%clk 0:02:57.7]} 5. Nf3 {[%clk 0:02:51.5]}
5... cxd4 {[%clk 0:02:57.6]} 6. Bd3 {[%clk 0:02:51.5]} 6... Nge7 {[%clk
0:02:54]} 7. O-O {[%clk 0:02:51.1]} 7... Nf5 {[%clk 0:02:54]} 8. Bxf5 {[%clk
0:02:49.8]} 8... exf5 {[%clk 0:02:53.9]} 9. Qg3 {[%clk 0:02:49.9]} 9... Be6
{[%clk 0:02:53.4]} 10. a3 {[%clk 0:02:49.2]} 10... g6 {[%clk 0:02:53.5]} 11. c3
{[%clk 0:02:48.4]} 11... dxc3 {[%clk 0:02:52.6]} 12. Nxc3 {[%clk 0:02:48.4]}
12... h6 {[%clk 0:02:52.1]} 13. h4 {[%clk 0:02:45.2]} 13... Be7 {[%clk
0:02:51.7]} 14. Nb5 {[%clk 0:02:28.4]} 14... a6 {[%clk 0:02:45.5]} 15. Nd6+
{[%clk 0:02:27.7]} 15... Bxd6 {[%clk 0:02:43.3]} 16. exd6 {[%clk 0:02:27.8]}
16... Qf6 {[%clk 0:02:34.5]} 17. Bf4 {[%clk 0:02:19.6]} 17... g5 {[%clk
0:02:25.5]} 18. hxg5 {[%clk 0:02:17.1]} 18... hxg5 {[%clk 0:02:25.2]} 19. Bxg5
{[%clk 0:02:09.7]} 19... Qg6 {[%clk 0:02:20.8]} 20. Ne5 {[%clk 0:01:32.2]} 20...
Nxe5 {[%clk 0:02:19]} 21. Qxe5 {[%clk 0:01:31.9]} 21... Kd7 {[%clk 0:02:18.3]}
22. Rac1 {[%clk 0:01:23]} 22... Rac8 {[%clk 0:02:17.5]} 23. Rc7+ {[%clk
0:01:17.6]} 23... Rxc7 {[%clk 0:02:12.9]} 24. dxc7 {[%clk 0:01:17.1]} 24... Rg8
{[%clk 0:02:11.4]} 25. f4 {[%clk 0:01:05.2]} 25... f6 {[%clk 0:02:11.6]} 26.
Qxf6 {[%clk 0:00:56.3]} 26... Qxf6 {[%clk 0:02:11.4]} 27. Bxf6 {[%clk
0:00:56.5]} 27... Kxc7 {[%clk 0:02:10.9]} 28. Be5+ {[%clk 0:00:55.1]} 28... Kb6
{[%clk 0:02:10]} 29. Rc1 {[%clk 0:00:53.5]} 29... d4 {[%clk 0:02:03.5]} 30.
Bxd4+ {[%clk 0:00:50.5]} 30... Kb5 {[%clk 0:02:03.2]} 31. Be5 {[%clk 0:00:49.9]}
31... Bd5 {[%clk 0:02:02.1]} 32. Rc2 {[%clk 0:00:49.2]} 32... Be4 {[%clk
0:02:01.8]} 33. Rd2 {[%clk 0:00:48.8]} 33... Kc4 {[%clk 0:01:58.7]} 34. Kf1
{[%clk 0:00:45.9]} 34... b5 {[%clk 0:01:57]} 35. Ke1 {[%clk 0:00:45.1]} 35... a5
{[%clk 0:01:57.1]} 36. Rd4+ {[%clk 0:00:43.8]} 36... Kb3 {[%clk 0:01:54.5]} 37.
Rd2 {[%clk 0:00:42.5]} 37... Bxg2 {[%clk 0:01:44.6]} 38. Rd3+ {[%clk 0:00:32.7]}
38... Kc4 {[%clk 0:01:44.5]} 39. Rc3+ {[%clk 0:00:32.1]} 39... Kd5 {[%clk
0:01:44.2]} 40. Rd3+ {[%clk 0:00:29.9]} 40... Kc6 {[%clk 0:01:37.4]} 41. Rd6+
{[%clk 0:00:28.6]} 41... Kc5 {[%clk 0:01:35.8]} 42. Rf6 {[%clk 0:00:24.5]} 42...
Be4 {[%clk 0:01:35]} 43. Ra6 {[%clk 0:00:21.3]} 43... a4 {[%clk 0:01:32.7]} 44.
Bd6+ {[%clk 0:00:17.7]} 44... Kc4 {[%clk 0:01:26.3]} 45. Be5 {[%clk 0:00:17.6]}
45... Kd3 {[%clk 0:01:19.7]} 46. Rd6+ {[%clk 0:00:16.2]} 46... Ke3 {[%clk
0:01:19.8]} 47. Rb6 {[%clk 0:00:14.7]} 47... Rg1# {[%clk 0:01:17.6]} 0-1

[Event "Late-Titled-Tuesday-Blitz-August-29-2023"]
[Site "Chess.com"]
[Date "2023.08.29"]
[Round "7"]
[White "Der_Honigdachs"]
[Black "WildBizon"]
[Result "0-1"]
[WhiteElo "2520"]
[BlackElo "2721"]
[TimeControl "180+1"]
[EndTime "15:15:27 PDT"]
[Termination "WildBizon won by resignation"]

1. Nf3 {[%clk 0:02:59.9]} 1... Nf6 {[%clk 0:02:57.4]} 2. g3 {[%clk 0:03:00]}
2... g6 {[%clk 0:02:51.8]} 3. Bg2 {[%clk 0:03:00]} 3... Bg7 {[%clk 0:02:52.4]}
4. O-O {[%clk 0:02:59.2]} 4... O-O {[%clk 0:02:53]} 5. b3 {[%clk 0:02:59.1]}
5... a5 {[%clk 0:02:52.4]} 6. Bb2 {[%clk 0:02:56.6]} 6... a4 {[%clk 0:02:52.6]}
7. d3 {[%clk 0:02:53.3]} 7... d6 {[%clk 0:02:52.7]} 8. e4 {[%clk 0:02:52.8]}
8... e5 {[%clk 0:02:52.8]} 9. Nbd2 {[%clk 0:02:51.3]} 9... a3 {[%clk 0:02:52.7]}
10. Bc3 {[%clk 0:02:51.3]} 10... b5 {[%clk 0:02:47.6]} 11. b4 {[%clk 0:02:47.5]}
11... Nc6 {[%clk 0:02:46.2]} 12. Nb3 {[%clk 0:02:46.7]} 12... Ra4 {[%clk
0:02:33]} 13. Qd2 {[%clk 0:02:43.9]} 13... Ng4 {[%clk 0:02:28.6]} 14. h3 {[%clk
0:02:42.8]} 14... Bh6 {[%clk 0:02:28.2]} 15. Qe1 {[%clk 0:02:40.5]} 15... Nf6
{[%clk 0:02:28.5]} 16. Nh2 {[%clk 0:02:29.9]} 16... Re8 {[%clk 0:02:13.6]} 17.
f4 {[%clk 0:02:26.1]} 17... exf4 {[%clk 0:02:13.8]} 18. gxf4 {[%clk 0:02:26.8]}
18... Bg7 {[%clk 0:02:14]} 19. e5 {[%clk 0:02:13.8]} 19... Bd7 {[%clk
0:02:03.3]} 20. Qf2 {[%clk 0:01:37.6]} 20... Nh5 {[%clk 0:01:58.4]} 21. Ng4
{[%clk 0:01:28.8]} 21... Nxb4 {[%clk 0:01:55.8]} 22. Rae1 {[%clk 0:01:17.7]}
22... Nxa2 {[%clk 0:01:53.9]} 23. Ba1 {[%clk 0:01:09]} 23... Rxf4 {[%clk
0:01:53.6]} 24. Qa7 {[%clk 0:01:02.3]} 24... Nb4 {[%clk 0:01:51]} 25. exd6
{[%clk 0:00:56.1]} 25... cxd6 {[%clk 0:01:46.9]} 26. Bxg7 {[%clk 0:00:54.8]}
26... Rxf1+ {[%clk 0:01:43.7]} 27. Rxf1 {[%clk 0:00:53.1]} 27... Bxg4 {[%clk
0:01:38.1]} 28. Ba1 {[%clk 0:00:23.2]} 28... Qd7 {[%clk 0:01:29.8]} 29. Qd4
{[%clk 0:00:21.7]} 29... Re5 {[%clk 0:01:23.7]} 30. hxg4 {[%clk 0:00:16.6]}
30... Nxc2 {[%clk 0:01:21.1]} 31. Qf2 {[%clk 0:00:07.2]} 31... Nxa1 {[%clk
0:01:16.8]} 32. Rxa1 {[%clk 0:00:08.1]} 32... Qxg4 {[%clk 0:01:12.4]} 33. Rxa3
{[%clk 0:00:07.2]} 33... Nf4 {[%clk 0:01:12.4]} 34. Ra2 {[%clk 0:00:07.1]} 34...
Nh3+ {[%clk 0:01:12]} 0-1

[Event "Late-Titled-Tuesday-Blitz-August-29-2023"]
[Site "Chess.com"]
[Date "2023.08.29"]
[Round "7"]
[White "Leo_C"]
[Black "Ncatt"]
[Result "0-1"]
[WhiteElo "2545"]
[BlackElo "2451"]
[TimeControl "180+1"]
[EndTime "15:15:28 PDT"]
[Termination "Ncatt won by resignation"]

1. d4 {[%clk 0:03:00.9]} 1... d5 {[%clk 0:02:59.3]} 2. Bf4 {[%clk 0:03:00.8]}
2... Nf6 {[%clk 0:02:59.4]} 3. e3 {[%clk 0:03:01]} 3... c5 {[%clk 0:02:59.1]} 4.
Nf3 {[%clk 0:03:00.7]} 4... Nc6 {[%clk 0:02:58.5]} 5. Nbd2 {[%clk 0:03:00.7]}
5... cxd4 {[%clk 0:02:57.9]} 6. exd4 {[%clk 0:03:00.6]} 6... Bf5 {[%clk
0:02:58.8]} 7. Bb5 {[%clk 0:02:55.7]} 7... a6 {[%clk 0:02:56.9]} 8. Bxc6+ {[%clk
0:02:53.4]} 8... bxc6 {[%clk 0:02:57.8]} 9. Ne5 {[%clk 0:02:53.4]} 9... Qb6
{[%clk 0:02:52.7]} 10. Nb3 {[%clk 0:02:53.3]} 10... e6 {[%clk 0:02:52.2]} 11.
O-O {[%clk 0:02:51.5]} 11... Be7 {[%clk 0:02:52.1]} 12. Re1 {[%clk 0:02:31.4]}
12... O-O {[%clk 0:02:51.8]} 13. g4 {[%clk 0:02:23.4]} 13... Bg6 {[%clk
0:02:39.2]} 14. h4 {[%clk 0:01:57]} 14... h6 {[%clk 0:02:07.8]} 15. Nxg6 {[%clk
0:01:40.8]} 15... fxg6 {[%clk 0:02:08.7]} 16. Rxe6 {[%clk 0:01:40.6]} 16... Rae8
{[%clk 0:02:06.5]} 17. Be5 {[%clk 0:01:23.3]} 17... Kf7 {[%clk 0:01:41.6]} 18.
Nc5 {[%clk 0:00:46]} 18... Bxc5 {[%clk 0:01:35]} 19. dxc5 {[%clk 0:00:46.3]}
19... Qxc5 {[%clk 0:01:30.6]} 20. Bd4 {[%clk 0:00:43.8]} 20... Qb5 {[%clk
0:01:21.8]} 21. Rxe8 {[%clk 0:00:41.3]} 21... Rxe8 {[%clk 0:01:22.7]} 22. Qf3
{[%clk 0:00:35.5]} 22... Re4 {[%clk 0:01:12]} 23. Bxf6 {[%clk 0:00:25.7]} 23...
gxf6 {[%clk 0:01:12.2]} 24. b3 {[%clk 0:00:18.2]} 24... Qb4 {[%clk 0:01:08.8]}
25. g5 {[%clk 0:00:18.4]} 25... hxg5 {[%clk 0:01:05.9]} 26. hxg5 {[%clk
0:00:18.5]} 26... Rg4+ {[%clk 0:01:05.6]} 27. Kf1 {[%clk 0:00:17.5]} 27... Rxg5
{[%clk 0:01:05]} 28. Qd3 {[%clk 0:00:12.1]} 28... Qg4 {[%clk 0:00:58.9]} 29. Qg3
{[%clk 0:00:02.4]} 29... Qd4 {[%clk 0:00:57.1]} 30. Qe3 {[%clk 0:00:01.9]} 30...
Qxa1+ {[%clk 0:00:56.6]} 0-1

[Event "Late-Titled-Tuesday-Blitz-August-29-2023"]
[Site "Chess.com"]
[Date "2023.08.29"]
[Round "7"]
[White "DawidCzerw"]
[Black "albi1999"]
[Result "1-0"]
[WhiteElo "2495"]
[BlackElo "2653"]
[TimeControl "180+1"]
[EndTime "15:15:29 PDT"]
[Termination "DawidCzerw won by resignation"]

1. d4 {[%clk 0:03:00.9]} 1... d6 {[%clk 0:02:49]} 2. e4 {[%clk 0:03:00.7]} 2...
Nf6 {[%clk 0:02:47.7]} 3. Nc3 {[%clk 0:03:00.8]} 3... Nbd7 {[%clk 0:02:45.8]} 4.
Nf3 {[%clk 0:03:00.1]} 4... e5 {[%clk 0:02:44.4]} 5. g4 {[%clk 0:03:00.6]} 5...
h6 {[%clk 0:02:42.9]} 6. Rg1 {[%clk 0:02:58]} 6... c6 {[%clk 0:02:42.3]} 7. h4
{[%clk 0:02:56.9]} 7... h5 {[%clk 0:02:38.7]} 8. g5 {[%clk 0:02:54.9]} 8... Ng4
{[%clk 0:02:38.2]} 9. d5 {[%clk 0:02:43.9]} 9... Nc5 {[%clk 0:02:32.4]} 10. Nd2
{[%clk 0:02:38.2]} 10... cxd5 {[%clk 0:02:24.2]} 11. Nxd5 {[%clk 0:02:36.6]}
11... Be6 {[%clk 0:02:22.5]} 12. Bc4 {[%clk 0:02:29.1]} 12... Rc8 {[%clk
0:02:13.6]} 13. Qe2 {[%clk 0:02:26.7]} 13... a6 {[%clk 0:02:03.9]} 14. a4 {[%clk
0:02:22]} 14... Qa5 {[%clk 0:01:48.2]} 15. c3 {[%clk 0:02:13.9]} 15... b5 {[%clk
0:01:26.9]} 16. b4 {[%clk 0:02:05.9]} 16... Qd8 {[%clk 0:01:25.9]} 17. axb5
{[%clk 0:01:56.8]} 17... axb5 {[%clk 0:01:21.3]} 18. Bxb5+ {[%clk 0:01:54.7]}
18... Nd7 {[%clk 0:01:21.7]} 19. Bxd7+ {[%clk 0:01:37.6]} 19... Bxd7 {[%clk
0:00:26.7]} 20. f3 {[%clk 0:01:34.8]} 20... Be7 {[%clk 0:00:26.8]} 21. fxg4
{[%clk 0:01:31]} 21... Bxg4 {[%clk 0:00:27.7]} 22. Qf2 {[%clk 0:01:28.5]} 22...
O-O {[%clk 0:00:26.9]} 23. Ra7 {[%clk 0:01:25.4]} 23... Re8 {[%clk 0:00:23.5]}
24. Rb7 {[%clk 0:00:49.9]} 24... Be6 {[%clk 0:00:20.6]} 25. Nf6+ {[%clk
0:00:43.4]} 25... Bxf6 {[%clk 0:00:17.9]} 26. gxf6 {[%clk 0:00:44.3]} 26... g6
{[%clk 0:00:17.7]} 27. Rxg6+ {[%clk 0:00:36.2]} 27... fxg6 {[%clk 0:00:15]} 28.
f7+ {[%clk 0:00:36.4]} 1-0

[Event "Late-Titled-Tuesday-Blitz-August-29-2023"]
[Site "Chess.com"]
[Date "2023.08.29"]
[Round "7"]
[White "KejJaj"]
[Black "ShrookWafa"]
[Result "0-1"]
[WhiteElo "2216"]
[BlackElo "2422"]
[TimeControl "180+1"]
[EndTime "15:15:29 PDT"]
[Termination "ShrookWafa won on time"]

1. d4 {[%clk 0:03:00.9]} 1... d5 {[%clk 0:02:59.7]} 2. Bf4 {[%clk 0:03:01.5]}
2... Nf6 {[%clk 0:02:59.9]} 3. e3 {[%clk 0:03:02]} 3... Bf5 {[%clk 0:03:00.3]}
4. Bd3 {[%clk 0:03:00.9]} 4... Bxd3 {[%clk 0:02:59.6]} 5. Qxd3 {[%clk
0:03:01.8]} 5... e6 {[%clk 0:02:59.3]} 6. Qb5+ {[%clk 0:03:01.6]} 6... Nbd7
{[%clk 0:02:56.7]} 7. Qxb7 {[%clk 0:02:58.1]} 7... Bd6 {[%clk 0:02:56.9]} 8.
Bxd6 {[%clk 0:02:46.8]} 8... cxd6 {[%clk 0:02:56.7]} 9. Qa6 {[%clk 0:02:42.9]}
9... O-O {[%clk 0:02:55.8]} 10. Ne2 {[%clk 0:02:37.3]} 10... Rb8 {[%clk
0:02:53.7]} 11. b3 {[%clk 0:02:36.6]} 11... Qc7 {[%clk 0:02:47.5]} 12. c3 {[%clk
0:02:20.4]} 12... Rb6 {[%clk 0:02:43.3]} 13. Qa3 {[%clk 0:02:19.6]} 13... e5
{[%clk 0:02:42.4]} 14. O-O {[%clk 0:02:17.6]} 14... e4 {[%clk 0:02:41.5]} 15.
Nd2 {[%clk 0:02:14.3]} 15... Rc6 {[%clk 0:02:31]} 16. c4 {[%clk 0:02:13.4]}
16... dxc4 {[%clk 0:02:29.4]} 17. bxc4 {[%clk 0:02:01]} 17... d5 {[%clk
0:02:29.1]} 18. c5 {[%clk 0:01:48.3]} 18... Ng4 {[%clk 0:02:25.1]} 19. Ng3
{[%clk 0:01:45.9]} 19... Rh6 {[%clk 0:02:23.5]} 20. h3 {[%clk 0:01:38.3]} 20...
Nxf2 {[%clk 0:02:23.2]} 21. Kxf2 {[%clk 0:01:38.2]} 21... Rf6+ {[%clk
0:02:22.8]} 22. Kg1 {[%clk 0:01:33.4]} 22... Qxg3 {[%clk 0:02:22.1]} 23. Rxf6
{[%clk 0:01:26.1]} 23... Nxf6 {[%clk 0:02:22.1]} 24. Nf1 {[%clk 0:01:22.4]}
24... Qc7 {[%clk 0:02:20.3]} 25. Rb1 {[%clk 0:01:21.3]} 25... h5 {[%clk
0:02:09.8]} 26. Qb4 {[%clk 0:01:15.2]} 26... h4 {[%clk 0:01:58]} 27. Qb7 {[%clk
0:01:13.2]} 27... Qa5 {[%clk 0:01:57.6]} 28. c6 {[%clk 0:01:05.4]} 28... Ne8
{[%clk 0:01:43.1]} 29. Rb2 {[%clk 0:00:47.9]} 29... Nd6 {[%clk 0:01:40.7]} 30.
Qd7 {[%clk 0:00:42.1]} 30... Nc4 {[%clk 0:01:38.2]} 31. Rb7 {[%clk 0:00:34.1]}
31... Qe1 {[%clk 0:01:31.6]} 32. Rb3 {[%clk 0:00:26.2]} 32... Nd2 {[%clk
0:01:29.9]} 33. Qf5 {[%clk 0:00:20.2]} 33... Nxb3 {[%clk 0:01:27.5]} 34. axb3
{[%clk 0:00:21.1]} 34... Qa5 {[%clk 0:01:23.6]} 35. Qd7 {[%clk 0:00:17.7]} 35...
Qb6 {[%clk 0:01:19.4]} 36. c7 {[%clk 0:00:15]} 36... Qe6 {[%clk 0:01:10.3]} 37.
Qb5 {[%clk 0:00:05.1]} 37... Rc8 {[%clk 0:01:09.3]} 0-1